bitfinex/quotes_SOLUSD_20250624
["timestamp","ask_amount","ask_price","bid_price","bid_amount"]
[1750755989207,5.18182155,144.31,144.25,95.9103]
[1750755990126,5.18182155,144.3,144.25,95.9103]
[1750755990303,5.18182155,144.29,144.25,89.4]
[1750755990507,5.18182155,144.28,144.25,89.4]
[1750755990709,5.18182155,144.29,144.24,1.5426]
[1750755991018,5.18182155,144.28,144.24,1.5426]
[1750755991225,5.18182155,144.29,144.24,1.5426]
[1750755991526,5.18182155,144.28,144.24,1.5426]
[1750755991707,5.18182155,144.29,144.24,1.5426]
[1750755992304,8.05238469,144.3,144.24,1.5426]
[1750755992506,13.23420624,144.3,144.24,1.5426]
[1750755992709,8.05238469,144.3,144.24,1.5426]
[1750755992908,13.23420624,144.3,144.24,1.5426]
[1750755993107,8.05238469,144.3,144.24,1.5426]
[1750755993319,13.23420624,144.3,144.24,1.5426]
[1750755993520,8.05238469,144.3,144.24,1.5426]
[1750755993828,13.23420624,144.3,144.25,6.6343]
[1750755994010,0.14185681,144.3,144.25,6.6343]
[1750755994212,5.32367836,144.3,144.25,6.6343]
[1750755994415,5.18182155,144.31,144.25,6.6343]
[1750755994607,5.18182155,144.3,144.25,96.0343]
[1750755994806,5.18182155,144.31,144.25,96.0343]
[1750755995025,5.18182155,144.3,144.25,96.0343]
[1750755995206,5.18182155,144.31,144.25,96.0343]
[1750755995402,5.18182155,144.3,144.25,96.0343]
[1750755995601,13.14551219,144.32,144.25,96.0343]
[1750755995822,5.18182155,144.31,144.25,96.0343]
[1750755996123,5.18182155,144.3,144.25,96.0343]
[1750755996327,5.18182155,144.31,144.25,96.0343]
[1750755996503,5.18182155,144.3,144.25,96.0343]
[1750755996701,5.18182155,144.31,144.25,96.0343]
[1750755996925,5.18182155,144.3,144.25,96.0343]
[1750755997225,5.18182155,144.31,144.25,96.0343]
[1750755997915,13.287369,144.32,144.25,96.0343]
[1750755998128,18.774533,144.32,144.25,96.0343]
[1750755998432,10.81084236,144.32,144.25,96.0343]
[1750755998933,5.62902081,144.32,144.25,96.0343]
[1750755999836,10.81084236,144.32,144.25,96.0343]
[1750756000928,31.49898555,144.32,144.21,6.2125]
[1750756001111,11.72243027,144.31,144.21,6.2125]
[1750756001319,5.18182155,144.3,144.21,6.2125]
[1750756001514,5.18182155,144.29,144.21,6.2125]
[1750756001719,5.18182155,144.28,144.21,6.2125]
[1750756001920,5.18182155,144.27,144.21,6.2125]
[1750756002131,0.0548696,144.27,144.21,6.2125]
[1750756002636,5.23669115,144.27,144.21,6.2125]
[1750756002840,5.18182155,144.26,144.21,6.2125]
[1750756003021,5.18182155,144.25,144.21,6.2125]
[1750756003224,5.18182155,144.26,144.21,6.2125]
[1750756003612,0.0548696,144.27,144.21,6.2125]
[1750756003823,5.23669115,144.27,144.21,6.2125]
[1750756004013,5.18182155,144.29,144.21,6.2125]
[1750756004231,5.18182155,144.31,144.21,6.2125]
[1750756004432,5.5420336,144.32,144.21,6.2125]
[1750756004433,5.18182155,144.3,144.21,6.2125]
[1750756004624,5.18182155,144.31,144.21,6.2125]
[1750756004936,5.18182155,144.3,144.21,6.2125]
[1750756005110,5.18182155,144.31,144.21,95.6125]
[1750756005310,5.18182155,144.3,144.22,1.5988]
[1750756005534,5.18182155,144.31,144.22,90.9988]
[1750756005736,5.18182155,144.31,144.23,6.1711]
[1750756005912,5.32367836,144.32,144.23,95.5711]
[1750756006112,5.18182155,144.31,144.23,95.5711]
[1750756006434,5.32367836,144.32,144.24,1.5798]
[1750756006937,5.18182155,144.35,144.26,1.5798]
[1750756007114,5.18182155,144.35,144.26,90.9798]
[1750756007316,19.08448903,144.36,144.26,90.9798]
[1750756007714,13.90266748,144.36,144.26,90.9798]
[1750756008734,13.90266748,144.36,144.27,6.1963]
[1750756010021,13.90266748,144.36,144.28,1.5918]
[1750756010523,5.18182155,144.4,144.29,6.0889]
[1750756010726,5.18182155,144.4,144.29,95.4889]
[1750756011118,10.62482112,144.4,144.29,95.4889]
[1750756011434,8.94116993,144.4,144.29,95.4889]
[1750756011628,13.14551219,144.41,144.29,95.4889]
[1750756012529,13.14551219,144.41,144.29,243.9889]
[1750756012827,7.96369064,144.41,144.3,1.5636]
[1750756014139,7.96369064,144.41,144.32,1.6568]
[1750756014346,5.18182155,144.44,144.32,91.0568]
[1750756014523,10.77732214,144.44,144.32,91.0568]
[1750756014723,5.18182155,144.44,144.34,1.6211]
[1750756014924,13.14551219,144.45,144.34,1.6211]
[1750756015440,7.96369064,144.45,144.34,1.6211]
[1750756015644,13.14551219,144.45,144.34,1.6211]
[1750756016017,18.60645555,144.45,144.34,1.6211]
[1750756016221,7.96369064,144.44,144.34,1.6211]
[1750756018421,11.44519475,144.44,144.34,1.6211]
[1750756019146,11.44519475,144.44,144.34,91.0211]
[1750756020541,11.44519475,144.44,144.34,1.6211]
[1750756020747,37.4570163,144.44,144.34,1.6211]
[1750756021049,34.24711748,144.43,144.34,1.6211]
[1750756021222,5.18182155,144.42,144.34,1.6211]
[1750756021418,13.14551219,144.42,144.34,1.6211]
[1750756022050,5.18182155,144.41,144.34,1.6211]
[1750756022232,5.18182155,144.42,144.34,1.6211]
[1750756022436,13.14551219,144.42,144.34,1.6211]
[1750756022749,7.96369064,144.41,144.34,1.6211]
[1750756025248,5.18182155,144.44,144.31,5.67516588]
[1750756025449,11.66756067,144.49,144.39,6.5833]
[1750756025638,3.41856668,144.49,144.4,1.522]
[1750756025840,11.66756067,144.53,144.41,6.5833]
[1750756026048,5.18182155,144.54,144.42,1.522]
[1750756026368,3.52323083,144.54,144.43,6.2718]
[1750756026664,6.84598932,144.56,144.43,6.2718]
[1750756026665,5.54207175,144.56,144.43,6.2718]
[1750756026827,0.3602502,144.56,144.43,6.2718]
[1750756027760,3.79971424,144.56,144.43,6.2718]
[1750756028146,15.46727491,144.56,144.43,6.2718]
[1750756028346,20.83,144.55,144.43,6.2718]
[1750756028527,15.60913172,144.56,144.43,6.2718]
[1750756028724,5.18182155,144.55,144.43,6.2718]
[1750756028944,8.98153579,144.56,144.43,6.2718]
[1750756029255,3.79971424,144.56,144.43,6.2718]
[1750756031752,0.3602502,144.56,144.44,8.1741]
[1750756037654,0.3602502,144.56,144.44,11.56764856]
[1750756038458,0.3602502,144.56,144.45,6.5356]
[1750756038761,0.3602502,144.56,144.46,1.6196]
[1750756042907,0.3602502,144.56,144.46,91.0196]
[1750756044254,0.3602502,144.56,144.42,7.7555]
[1750756044462,0.3602502,144.56,144.44,1.6181]
[1750756044638,0.3602502,144.56,144.46,1.557]
[1750756044839,0.3602502,144.56,144.49,6.0826]
[1750756045865,0.3602502,144.56,144.5,1.5047]
[1750756046266,0.3602502,144.56,144.52,1.5047]
[1750756049562,5.10991909,144.67,144.53,6.3315]
[1750756049771,6.2997,144.69,144.55,6.3315]
[1750756049772,5.10991909,144.69,144.55,6.3315]
[1750756050082,14.9728299,144.69,144.55,95.7315]
[1750756050257,9.86291081,144.69,144.55,95.7315]
[1750756050449,5.10991909,144.68,144.55,95.7315]
[1750756050653,3.47551194,144.69,144.55,95.7315]
[1750756050866,5.10991909,144.69,144.55,95.7315]
[1750756051085,5.10991909,144.69,144.56,1.5408]
[1750756051372,5.10991909,144.7,144.56,90.9408]
[1750756051542,5.10991909,144.69,144.56,90.9408]
[1750756052378,8.63570706,144.7,144.56,90.9408]
[1750756052547,15.02310593,144.7,144.56,90.9408]
[1750756053171,8.63570706,144.7,144.56,90.9408]
[1750756053564,15.02310593,144.7,144.56,90.9408]
[1750756053985,8.63570706,144.7,144.56,90.9408]
[1750756054279,8.63570706,144.7,144.57,6.5146]
[1750756054447,5.10991909,144.7,144.59,6.5146]
[1750756054651,7.07802542,144.71,144.59,95.9146]
[1750756054956,5.10991909,144.7,144.59,6.5146]
[1750756055173,7.07802542,144.71,144.59,6.5146]
[1750756055483,12.18794451,144.71,144.59,6.5146]
[1750756057555,15.68265833,144.71,144.59,6.5146]
[1750756059397,8.60463291,144.71,144.59,6.5146]
[1750756060459,8.60463291,144.71,144.6,1.5447]
[1750756060957,5.08817328,144.7,144.6,1.5447]
[1750756062177,3.49471382,144.71,144.6,1.5447]
[1750756062393,5.08817328,144.71,144.6,1.5447]
[1750756063499,11.44838988,144.73,144.61,6.5038]
[1750756063700,11.44838988,144.74,144.62,1.5201]
[1750756063904,5.08817328,144.73,144.62,1.5201]
[1750756064201,8.48822241,144.73,144.62,1.5201]
[1750756064384,3.40004913,144.73,144.62,1.5201]
[1750756064589,5.08817328,144.74,144.64,1.5201]
[1750756065112,5.08817328,144.73,144.64,1.5201]
[1750756065424,25.91817328,144.74,144.64,1.5201]
[1750756065607,3.49205453,144.73,144.64,1.5201]
[1750756065906,11.44838988,144.74,144.64,1.5201]
[1750756065907,5.08817328,144.74,144.64,1.5201]
[1750756066079,6.3602166,144.75,144.64,1.5201]
[1750756066280,5.08817328,144.74,144.64,1.5201]
[1750756066811,11.44838988,144.76,144.64,1.5201]
[1750756067107,5.08817328,144.75,144.64,1.5201]
[1750756067405,6.3602166,144.72,144.64,1.5201]
[1750756067588,5.08817328,144.71,144.64,1.5201]
[1750756067789,5.08817328,144.7,144.64,1.5201]
[1750756067992,5.08817328,144.71,144.64,1.5201]
[1750756068204,5.08817328,144.7,144.64,1.5201]
[1750756068377,5.08817328,144.69,144.64,1.5201]
[1750756068584,5.08817328,144.7,144.64,1.5201]
[1750756068909,5.08817328,144.69,144.64,1.5201]
[1750756069111,5.08817328,144.7,144.64,1.5201]
[1750756069295,11.44838988,144.69,144.64,1.5201]
[1750756069484,11.44838988,144.68,144.6,1.5391]
[1750756069684,6.3602166,144.66,144.41,250.99644526]
[1750756069884,13.10648988,144.65,144.41,241.30380937]
[1750756070115,6.3602166,144.62,144.41,3.40380937]
[1750756070414,6.3602166,144.6,144.36,3.60618589]
[1750756070581,11.44838988,144.59,144.36,3.60618589]
[1750756070909,11.44838988,144.58,144.36,6.99358363]
[1750756071088,5.08817328,144.57,144.37,9.69263589]
[1750756071294,5.08817328,144.56,144.37,9.69263589]
[1750756071500,5.08817328,144.55,144.37,9.69263589]
[1750756071817,5.08817328,144.54,144.37,9.69263589]
[1750756072107,5.08817328,144.56,144.37,9.69263589]
[1750756072414,5.08817328,144.55,144.36,6.99358363]
[1750756072591,5.08817328,144.56,144.37,9.69263589]
[1750756072799,5.08817328,144.55,144.41,6.2848]
[1750756073114,8.60250073,144.61,144.41,6.2848]
[1750756073115,5.08817328,144.54,144.41,6.2848]
[1750756073294,5.08817328,144.53,144.41,6.2848]
[1750756073494,5.08817328,144.52,144.41,6.2848]
[1750756073696,5.08817328,144.51,144.41,6.2848]
[1750756074011,5.08817328,144.52,144.41,6.2848]
[1750756074183,5.08817328,144.53,144.41,6.2848]
[1750756074386,5.08817328,144.54,144.41,6.2848]
[1750756074712,5.08817328,144.57,144.41,6.2848]
[1750756075013,5.08817328,144.56,144.41,6.2848]
[1750756075185,5.08817328,144.57,144.41,6.2848]
[1750756075912,5.08817328,144.58,144.41,6.2848]
[1750756076097,5.08817328,144.59,144.41,6.2848]
[1750756076408,5.08817328,144.58,144.41,6.2848]
[1750756076615,5.08817328,144.59,144.41,6.2848]
[1750756076800,5.08817328,144.58,144.41,6.2848]
[1750756076996,5.08817328,144.59,144.41,6.2848]
[1750756077199,5.08817328,144.58,144.41,6.2848]
[1750756077406,5.08817328,144.59,144.41,6.2848]
[1750756078107,5.08817328,144.6,144.41,6.2848]
[1750756078491,5.08817328,144.61,144.41,6.2848]
[1750756078697,5.08817328,144.6,144.43,6.1851]
[1750756078897,5.08817328,144.61,144.43,244.0851]
[1750756079215,5.08817328,144.6,144.43,244.0851]
[1750756079513,5.08817328,144.61,144.43,244.0851]
[1750756079710,11.44838988,144.62,144.43,244.0851]
[1750756079886,5.08817328,144.61,144.43,244.0851]
[1750756080087,11.44838988,144.6,144.43,244.0851]
[1750756080410,11.44838988,144.61,144.43,244.0851]
[1750756080714,5.08817328,144.6,144.43,244.0851]
[1750756081105,5.08817328,144.59,144.43,244.0851]
[1750756081309,5.08817328,144.6,144.43,244.0851]
[1750756081513,8.33333333,144.58,144.43,244.0851]
[1750756083220,8.33333333,144.58,144.44,7.5426]
[1750756083808,8.33333333,144.58,144.45,6.0065]
[1750756084393,8.33333333,144.58,144.47,6.2411]
[1750756084695,8.33333333,144.58,144.47,95.6411]
[1750756086317,8.33333333,144.58,144.48,8.1151]
[1750756086619,8.33333333,144.58,144.49,6.5428]
[1750756090420,8.33333333,144.58,144.49,95.9428]
[1750756090628,8.33333333,144.58,144.49,6.5428]
[1750756100235,29.16333333,144.58,144.45,6.0071]
[1750756100413,32.27838988,144.57,144.45,6.0071]
[1750756100615,11.44838988,144.57,144.45,6.0071]
[1750756100947,8.33333333,144.58,144.45,6.0071]
[1750756102619,8.33333333,144.58,144.45,95.4071]
[1750756103434,11.44838988,144.57,144.45,95.4071]
[1750756103614,32.27838988,144.57,144.45,95.4071]
[1750756104023,20.83,144.57,144.45,95.4071]
[1750756104223,25.91817328,144.57,144.45,95.4071]
[1750756104432,32.27838988,144.57,144.45,95.4071]
[1750756105044,20.83,144.57,144.45,95.4071]
[1750756105223,32.27838988,144.57,144.45,95.4071]
[1750756105966,6.3866,144.55,144.44,1.5933]
[1750756106127,6.3602166,144.51,144.42,6.0348]
[1750756106336,5.08817328,144.51,144.42,6.0348]
[1750756106653,32.27838988,144.51,144.42,6.0348]
[1750756106824,30.8035956,144.51,144.42,6.0348]
[1750756107016,32.27838988,144.5,144.4,1.5559]
[1750756107212,35.68279091,144.5,144.4,1.5559]
[1750756108437,11.44838988,144.5,144.4,1.5559]
[1750756108649,11.44838988,144.51,144.4,1.5559]
[1750756108946,6.3602166,144.51,144.4,1.5559]
[1750756109150,5.08817328,144.51,144.4,1.5559]
[1750756109830,27.1902166,144.52,144.4,1.5559]
[1750756110031,32.27838988,144.52,144.4,1.5559]
[1750756110239,5.08817328,144.51,144.4,1.5559]
[1750756111223,5.08817328,144.5,144.4,1.5559]
[1750756112142,5.08817328,144.49,144.4,1.5559]
[1750756112338,5.08817328,144.5,144.4,1.5559]
[1750756112532,5.08817328,144.49,144.4,1.5559]
[1750756112736,5.08817328,144.5,144.4,1.5559]
[1750756113244,5.08817328,144.49,144.4,1.5559]
[1750756113427,5.08817328,144.5,144.4,1.5559]
[1750756113629,5.08817328,144.49,144.4,1.5559]
[1750756113950,5.08817328,144.5,144.4,90.9559]
[1750756114133,5.08817328,144.49,144.4,90.9559]
[1750756114326,5.08817328,144.48,144.4,90.9559]
[1750756114523,6.3602166,144.51,144.4,90.9559]
[1750756114524,11.44838988,144.5,144.4,90.9559]
[1750756114722,5.08817328,144.49,144.4,90.9559]
[1750756114923,5.08817328,144.48,144.4,90.9559]
[1750756115146,5.08817328,144.49,144.4,90.9559]
[1750756115338,5.08817328,144.48,144.4,90.9559]
[1750756115643,5.08817328,144.47,144.4,90.9559]
[1750756115849,5.08817328,144.46,144.4,90.9559]
[1750756116050,5.08817328,144.47,144.4,90.9559]
[1750756116251,5.08817328,144.46,144.4,1.5559]
[1750756116552,25.91817328,144.45,144.36,1.5139]
[1750756116728,5.08817328,144.44,144.36,1.5139]
[1750756117046,5.08817328,144.43,144.36,1.5139]
[1750756117231,5.08817328,144.44,144.36,1.5139]
[1750756117437,5.08817328,144.43,144.36,1.5139]
[1750756117634,5.08817328,144.44,144.36,1.5139]
[1750756118031,5.08817328,144.46,144.36,1.5139]
[1750756118234,5.08817328,144.47,144.36,1.5139]
[1750756118535,5.08817328,144.46,144.36,1.5139]
[1750756118749,5.08817328,144.47,144.36,1.5139]
[1750756118947,5.08817328,144.46,144.36,1.5139]
[1750756119339,25.91817328,144.47,144.36,1.5139]
[1750756120534,20.83,144.47,144.36,1.5139]
[1750756120735,5.08817328,144.48,144.36,1.5139]
[1750756121349,27.1902166,144.49,144.36,1.5139]
[1750756121550,32.27838988,144.49,144.36,1.5139]
[1750756121734,25.91817328,144.48,144.36,1.5139]
[1750756122240,20.83,144.48,144.36,1.5139]
[1750756122660,20.83,144.48,144.36,90.9139]
[1750756123551,32.27838988,144.48,144.36,90.9139]
[1750756123748,5.08817328,144.47,144.36,90.9139]
[1750756124141,27.1902166,144.48,144.36,90.9139]
[1750756124342,32.27838988,144.48,144.36,90.9139]
[1750756124540,27.1902166,144.48,144.36,90.9139]
[1750756124735,32.27838988,144.48,144.36,90.9139]
[1750756125055,5.08817328,144.47,144.36,90.9139]
[1750756125242,27.1902166,144.48,144.36,90.9139]
[1750756125441,11.44838988,144.48,144.36,90.9139]
[1750756125648,6.3602166,144.48,144.36,90.9139]
[1750756125857,11.44838988,144.47,144.36,90.9139]
[1750756126056,11.44838988,144.48,144.36,90.9139]
[1750756126255,11.44838988,144.5,144.38,1.6]
[1750756126457,6.3602166,144.5,144.38,1.6]
[1750756126765,11.44838988,144.5,144.38,1.6]
[1750756127158,32.27838988,144.51,144.38,1.6]
[1750756127766,11.44838988,144.51,144.38,1.6]
[1750756127979,14.84890599,144.52,144.4,1.6382]
[1750756128144,3.40051611,144.52,144.4,1.6382]
[1750756128466,11.44838988,144.52,144.4,1.6382]
[1750756128849,11.59024669,144.53,144.4,1.6382]
[1750756129059,11.44838988,144.52,144.4,1.6382]
[1750756129260,6.3602166,144.52,144.4,1.6382]
[1750756130076,32.27838988,144.52,144.4,1.6382]
[1750756130267,6.3602166,144.51,144.4,1.6382]
[1750756130469,35.71261762,144.52,144.4,1.6382]
[1750756130659,6.3602166,144.51,144.4,1.6382]
[1750756131377,11.38531358,144.51,144.4,1.6382]
[1750756133283,5.08817328,144.5,144.4,1.6382]
[1750756133468,5.08817328,144.51,144.4,1.6382]
[1750756133664,25.91817328,144.5,144.4,1.6382]
[1750756133870,20.83,144.5,144.4,1.6382]
[1750756134062,25.91817328,144.5,144.4,1.6382]
[1750756134262,5.08817328,144.49,144.4,1.6382]
[1750756134775,25.91817328,144.5,144.4,1.6382]
[1750756134978,5.08817328,144.49,144.4,1.6382]
[1750756135279,5.08817328,144.48,144.4,1.6382]
[1750756135459,5.08817328,144.49,144.4,1.6382]
[1750756135657,5.08817328,144.48,144.4,1.6382]
[1750756135968,5.08817328,144.49,144.4,1.6382]
[1750756136178,5.08817328,144.48,144.4,1.6382]
[1750756136352,5.08817328,144.47,144.4,1.6382]
[1750756136557,20.83,144.48,144.4,1.6382]
[1750756136763,5.08817328,144.47,144.4,1.6382]
[1750756137463,5.08817328,144.46,144.4,1.6382]
[1750756137766,5.08817328,144.45,144.4,1.6382]
[1750756137961,25.91817328,144.46,144.4,1.6382]
[1750756138162,5.08817328,144.45,144.4,1.6382]
[1750756138362,5.08817328,144.44,144.4,1.6382]
[1750756138574,5.08817328,144.45,144.4,1.6382]
[1750756138790,5.08817328,144.44,144.4,1.6382]
[1750756138986,5.08817328,144.45,144.4,1.6382]
[1750756139183,25.91817328,144.46,144.4,1.6382]
[1750756139389,5.08817328,144.45,144.4,1.6382]
[1750756139601,5.08817328,144.44,144.4,1.6382]
[1750756139804,5.08817328,144.45,144.4,1.6382]
[1750756139969,5.08817328,144.44,144.4,1.6382]
[1750756140170,5.08817328,144.45,144.4,1.6382]
[1750756140469,5.08817328,144.44,144.4,1.6382]
[1750756140693,20.83,144.46,144.26,241.29947683]
[1750756140896,20.83,144.44,144.26,89.4]
[1750756141091,22.3728,144.42,144.24,89.4]
[1750756141387,20.83,144.4,144.24,89.4]
[1750756141578,20.83,144.38,144.24,89.4]
[1750756141785,5.08817328,144.37,144.24,89.4]
[1750756142089,20.83,144.34,144.21,89.4]
[1750756142289,25.91817328,144.33,144.15,3.46298257]
[1750756142470,25.91817328,144.32,144.15,89.4]
[1750756142789,0.14185681,144.33,144.15,89.4]
[1750756142790,25.91817328,144.31,144.15,89.4]
[1750756142996,5.08817328,144.3,144.15,89.4]
[1750756143367,5.08817328,144.29,144.15,89.4]
[1750756143583,20.83,144.31,144.15,89.4]
[1750756143894,5.08817328,144.31,144.16,7.8039]
[1750756144597,25.91817328,144.31,144.16,7.8039]
[1750756144774,20.83,144.31,144.16,7.8039]
[1750756145095,25.91817328,144.31,144.16,7.8039]
[1750756145298,20.83,144.31,144.16,7.8039]
[1750756146670,20.83,144.32,144.16,7.8039]
[1750756147495,20.97185681,144.3,144.16,7.8039]
[1750756147678,20.83,144.28,144.16,7.8039]
[1750756149100,1.5075,144.27,144.16,6.2232]
[1750756149403,1.5075,144.27,144.12,7.8777]
[1750756150669,1.5577,144.24,144.09,6.1117]
[1750756151092,0.14185681,144.23,144.09,6.1117]
[1750756151693,6.5132,144.22,144.06,87.13034238]
[1750756153308,27.3432,144.22,144.06,87.13034238]
[1750756153492,0.14185681,144.21,144.06,87.13034238]
[1750756154477,6.5132,144.22,144.06,87.13034238]
[1750756158800,20.83,144.21,144.06,87.13034238]
[1750756159012,6.5132,144.22,144.06,87.13034238]
[1750756160014,1.5572,144.21,144.06,87.13034238]
[1750756160695,7.15847664,144.21,144.06,87.13034238]
[1750756161008,27.98847664,144.21,144.06,87.13034238]
[1750756161313,6.4216,144.2,144.06,80.54174238]
[1750756163100,6.4216,144.2,144.06,80.04174238]
[1750756165920,1.6069,144.19,144.06,80.04174238]
[1750756166223,1.6069,144.17,144.06,80.04174238]
[1750756166529,6.5874,144.14,143.98,8.2974]
[1750756174431,6.5773,144.12,143.98,1.648]
[1750756174643,6.5773,144.12,143.95,9.58596939]
[1750756175308,6.5773,144.12,143.97,1.5662]
[1750756175511,6.5773,144.12,143.97,8.5391056]
[1750756178410,6.5773,144.12,143.98,6.4516]
[1750756178734,6.5773,144.12,143.98,244.3516]
[1750756180625,6.5773,144.12,143.98,95.8516]
[1750756186041,17.15616551,144.12,143.98,95.8516]
[1750756186226,6.5773,144.12,143.98,95.8516]
[1750756186946,11.60513261,144.12,143.98,95.8516]
[1750756187443,6.5773,144.12,143.98,95.8516]
[1750756187640,11.60513261,144.12,143.98,95.8516]
[1750756188127,6.5773,144.12,143.98,95.8516]
[1750756189033,6.5773,144.12,143.98,116.6816]
[1750756189239,6.5773,144.12,143.98,123.6545056]
[1750756190625,4.13688102,144.12,143.98,272.1545056]
[1750756192951,4.13688102,144.12,144.0,20.83]
[1750756193541,4.13688102,144.12,144.0,258.73]
[1750756194052,4.13688102,144.12,144.0,265.7029056]
[1750756199964,1.5204,144.13,144.02,20.83]
[1750756200160,1.5204,144.13,144.03,1.6026]
[1750756200536,1.5204,144.13,144.04,20.83]
[1750756201563,1.5204,144.13,144.04,258.73]
[1750756203530,1.5204,144.13,144.04,237.9]
[1750756205652,1.5204,144.13,144.04,89.4]
[1750756205846,6.3145,144.12,144.04,89.4]
[1750756208253,6.3145,144.12,144.04,258.73]
[1750756208737,1.5204,144.13,144.04,258.73]
[1750756208944,1.5204,144.13,144.04,265.7029056]
[1750756209133,1.5204,144.13,144.06,20.83]
[1750756209337,1.5204,144.13,144.06,258.73]
[1750756209839,6.6394,144.16,144.06,258.73]
[1750756210447,6.6394,144.16,144.06,267.3655056]
[1750756211159,6.6394,144.16,144.06,265.7029056]
[1750756211536,6.6394,144.16,144.06,244.8729056]
[1750756211834,6.6394,144.16,144.06,265.7029056]
[1750756213665,1.6086,144.15,144.06,237.9]
[1750756214045,6.0708,144.14,144.06,237.9]
[1750756214770,1.6086,144.13,144.06,237.9]
[1750756215066,6.3264,144.12,144.06,89.4]
[1750756215260,1.5143,144.11,144.06,89.4]
[1750756217434,1.5143,144.11,144.01,237.9]
[1750756220366,1.6384,144.09,144.01,237.9]
[1750756220567,1.6384,144.09,144.01,89.4]
[1750756223547,1.6384,144.09,144.01,237.9]
[1750756229553,1.6384,144.09,144.01,89.4]
[1750756229773,6.2974,144.08,144.01,89.4]
[1750756235262,1.5271,144.07,144.01,89.4]
[1750756242055,1.5271,144.07,143.96,237.9]
[1750756243756,1.5271,144.07,143.96,244.8729056]
[1750756245669,1.5271,144.07,143.97,6.9729056]
[1750756246869,1.5271,144.07,143.97,244.8729056]
[1750756247860,1.5271,144.07,143.97,272.3253056]
[1750756248985,1.5271,144.07,143.97,280.50802761]
[1750756249387,7.9592,144.19,143.98,1.6005]
[1750756249588,1.5194,144.16,143.99,27.8129056]
[1750756249763,1.5194,144.16,144.01,20.84]
[1750756249965,1.5194,144.16,144.02,6.9729056]
[1750756250168,1.5194,144.16,144.02,265.7129056]
[1750756250999,1.5194,144.16,144.02,273.89562761]
[1750756251169,1.5194,144.16,144.02,282.33320547]
[1750756258093,1.5194,144.16,144.03,6.6288]
[1750756258293,1.5194,144.16,144.04,29.3457056]
[1750756262193,1.5194,144.16,144.04,267.2457056]
[1750756265389,1.5194,144.16,144.04,265.7129056]
[1750756268288,1.5863,144.14,144.04,237.9]
[1750756268603,1.5863,144.12,144.04,237.9]
[1750756279915,1.5863,144.12,144.04,265.7129056]
[1750756280104,1.5863,144.12,144.05,27.8129056]
[1750756280305,1.5863,144.12,144.05,265.7129056]
[1750756280640,7.7798,144.22,144.13,89.4]
[1750756280828,7.7798,144.22,144.13,237.9]
[1750756281422,7.7798,144.22,144.13,241.3914423]
[1750756284593,7.7798,144.22,144.13,248.3643479]
[1750756298643,7.7798,144.22,144.14,20.84]
[1750756298839,7.7798,144.22,144.13,248.3643479]
[1750756299256,1.6484,144.21,144.13,248.3643479]
[1750756307554,1.6484,144.21,144.13,262.2314423]
[1750756307864,1.6484,144.21,144.14,27.8129056]
[1750756308661,1.6484,144.21,144.14,6.9729056]
[1750756308831,1.6484,144.21,144.14,27.8129056]
[1750756312270,6.2255,144.22,144.21,87.7516]
[1750756312435,6.2255,144.22,144.21,89.4]
[1750756314362,6.2255,144.22,144.21,87.7334]
[1750756315348,7.8264,144.22,144.21,87.7334]
[1750756320658,7.8264,144.22,144.14,237.9]
[1750756323042,5.15114436,144.25,144.14,89.4]
[1750756323250,1.6102,144.2,144.14,89.4]
[1750756323451,6.1031,144.19,144.14,89.4]
[1750756323958,6.5455,144.17,144.08,92.80603623]
[1750756332788,6.5455,144.17,144.08,262.14603623]
[1750756332964,6.5455,144.17,144.08,269.11894183]
[1750756335991,6.5455,144.17,144.08,248.27894183]
[1750756336981,6.5455,144.17,144.08,269.11894183]
[1750756337574,6.5455,144.17,144.09,6.9729056]
[1750756337771,6.5455,144.17,144.09,27.8129056]
[1750756338108,6.596,144.21,144.1,1.6303]
[1750756338307,6.596,144.21,144.11,6.9729056]
[1750756338504,6.596,144.21,144.12,20.84]
[1750756338670,6.596,144.21,144.13,6.9729056]
[1750756338996,6.596,144.21,144.13,244.8729056]
[1750756341800,6.596,144.21,144.13,96.3729056]